bitfinex/quotes_ETHUSD_20250801
["timestamp","ask_amount","ask_price","bid_price","bid_amount"]
[1754072423849,5.13921167,3551.5,3549.7,1.3381]
[1754072424143,2.81631758,3550.8,3549.7,1.3381]
[1754072424370,5.124,3550.8,3549.8,0.0281706]
[1754072424552,11.892,3551.7,3550.7,0.1408]
[1754072425074,11.892,3551.7,3550.8,3.02816266]
[1754072425244,11.892,3551.7,3551.6,0.1408]
[1754072425245,5.123,3551.7,3551.6,0.1408]
[1754072425567,5.123,3551.7,3551.1,2.8160242]
[1754072425568,7.4465,3551.7,3550.0,0.4292]
[1754072425774,2.3235,3551.6,3550.6,3.0]
[1754072425942,3.34969263,3551.6,3549.5,1.2752]
[1754072426268,1.8845,3551.5,3549.5,1.2752]
[1754072426443,0.001,3551.5,3550.8,3.0]
[1754072426643,0.001,3551.5,3550.1,0.4292]
[1754072426831,0.001,3551.5,3550.7,3.0]
[1754072427031,0.001,3551.5,3550.8,0.3]
[1754072427330,0.001,3551.5,3551.4,2.81579095]
[1754072427530,0.001,3551.5,3550.4,4.6999]
[1754072427531,0.001,3551.5,3550.5,12.02321704]
[1754072427772,0.001,3551.5,3550.4,4.6999]
[1754072427773,0.001,3551.5,3550.8,3.0]
[1754072427946,0.001,3551.5,3551.3,2.81585664]
[1754072428143,0.001,3551.5,3551.4,5.81579095]
[1754072428773,0.001,3551.5,3551.4,3.0]
[1754072428989,0.001,3551.5,3551.4,5.81579095]
[1754072429139,0.001,3551.5,3551.4,8.37885846]
[1754072429471,0.001,3551.5,3551.4,3.0]
[1754072429841,1.8855,3551.5,3551.4,3.0]
[1754072430042,0.001,3551.5,3551.4,3.0]
[1754072430666,0.001,3551.5,3551.4,5.81579095]
[1754072430837,0.001,3551.5,3550.6,2.8163933]
[1754072431056,2.3235,3551.4,3549.8,1.2707]
[1754072431243,2.81606006,3551.1,3550.3,2.81660893]
[1754072431446,2.3235,3551.4,3550.5,3.0]
[1754072431645,7.91892206,3551.3,3550.5,2.81645249]
[1754072431862,5.103,3551.3,3550.6,3.0]
[1754072432148,5.1,3551.2,3549.0,2.81767333]
[1754072432347,7.4195,3551.4,3549.8,0.0281706]
[1754072432543,10.23529394,3551.4,3550.6,2.81637916]
[1754072432748,10.23529394,3551.4,3550.7,3.0]
[1754072433062,6.9805,3551.4,3550.9,2.81613407]
[1754072433257,7.91185095,3551.4,3550.7,3.0]
[1754072433439,7.91185095,3551.4,3549.9,0.17280706]
[1754072433440,1.8845,3551.3,3549.9,0.17280706]
[1754072433756,2.8162018,3550.9,3550.3,3.0]
[1754072433957,5.087,3550.8,3549.4,3.0]
[1754072434179,10.22681469,3550.8,3550.1,3.0]
[1754072434343,7.4105,3550.8,3549.5,3.0]
[1754072434544,5.085,3550.7,3550.5,2.81643281]
[1754072434745,5.083,3551.3,3550.5,0.28164328]
[1754072434945,0.001,3551.5,3550.8,2.81625198]
[1754072435198,0.001,3551.5,3551.4,2.81579095]
[1754072435479,1.8845,3553.0,3552.1,3.0]
[1754072435696,1.8845,3553.5,3552.2,0.02815156]
[1754072435998,0.439,3553.7,3553.5,0.1408]
[1754072436286,2.81412691,3553.5,3553.4,0.1408]
[1754072436461,2.8144379,3553.2,3552.9,0.1408]
[1754072436661,0.1,3552.6,3549.4,60.0]
[1754072436847,0.1,3550.7,3549.3,2.81745696]
[1754072437049,5.093,3550.6,3548.9,0.845688]
[1754072437305,0.439,3550.7,3549.0,2.81769512]
[1754072437506,0.1,3550.8,3550.6,0.1408]
[1754072437711,5.192,3550.7,3550.6,0.1408]
[1754072437918,5.189,3550.7,3550.6,0.1408]
[1754072438704,5.628,3550.7,3550.6,0.1408]
[1754072438903,0.1,3550.7,3550.6,0.1408]
[1754072439290,0.439,3551.2,3550.6,0.1408]
[1754072439491,0.1,3550.8,3550.6,0.1408]
[1754072439697,0.1,3551.0,3550.7,0.1408]
[1754072439910,5.079,3551.3,3550.2,0.02816742]
[1754072440078,5.079,3551.3,3551.2,5.81594953]
[1754072440280,0.001,3551.5,3551.2,3.1408]
[1754072440475,0.001,3551.5,3551.4,0.1408]
[1754072440692,0.001,3551.5,3551.4,2.95659095]
[1754072440871,0.001,3551.5,3551.4,0.1408]
[1754072441090,0.001,3551.5,3551.4,2.95659095]
[1754072441392,0.001,3551.5,3551.4,5.95659095]
[1754072441579,0.001,3551.5,3551.4,7.13666036]
[1754072441780,0.001,3551.5,3551.4,5.95659095]
[1754072442222,0.001,3551.5,3551.4,6.15739095]
[1754072442781,5.07,3552.9,3551.7,3.0]
[1754072443083,5.168,3553.1,3552.0,2.81531531]
[1754072443410,0.1,3552.4,3550.6,5.066]
[1754072443581,2.81523783,3552.1,3551.2,2.81587978]
[1754072443783,2.91531596,3552.0,3551.3,3.0]
[1754072444026,0.1,3552.0,3551.3,5.81585879]
[1754072444221,0.1,3552.0,3551.5,3.0]
[1754072444415,0.1,3552.0,3551.4,3.0]
[1754072444579,0.1,3552.0,3551.9,0.1408]
[1754072444791,2.91536695,3552.0,3550.6,2.8163634]
[1754072444989,2.91604344,3551.1,3550.2,2.81669957]
[1754072445213,0.1,3550.9,3549.9,0.002]
[1754072445441,0.1,3550.9,3550.8,0.1408]
[1754072445741,3.36320268,3550.9,3550.8,0.1408]
[1754072445891,0.1,3550.6,3549.9,0.002]
[1754072446086,0.1,3550.6,3549.9,2.81891668]
[1754072446392,8.86697182,3550.9,3550.5,0.1408]
[1754072446587,0.447,3550.8,3550.5,0.1408]
[1754072446793,0.447,3550.7,3550.0,2.81682337]
[1754072447104,0.547,3550.7,3549.9,0.002]
[1754072447286,0.1,3550.4,3550.3,0.1408]
[1754072447687,5.6,3550.4,3550.3,0.1408]
[1754072448323,5.153,3550.4,3550.3,0.1408]
[1754072448573,5.6,3550.4,3550.3,0.1408]
[1754072449320,5.053,3550.4,3550.3,0.1408]
[1754072449536,5.5,3550.4,3550.3,0.1408]
[1754072449695,10.81968404,3550.4,3550.3,0.1408]
[1754072449898,10.81968404,3550.4,3550.2,0.002]
[1754072449899,2.81666338,3550.3,3550.2,0.002]
[1754072450118,5.10676338,3550.3,3550.2,0.002]
[1754072451066,5.10676338,3550.3,3549.9,0.1428]
[1754072451199,2.9169014,3550.0,3549.9,0.1428]
[1754072451594,0.547,3550.0,3549.9,0.1428]
[1754072452102,0.1,3550.4,3550.0,2.81684144]
[1754072452367,0.1,3550.4,3550.3,0.1408]
[1754072452545,5.034,3550.6,3550.3,0.1408]
[1754072453042,5.034,3550.6,3549.9,0.002]
[1754072453223,0.1,3551.2,3550.5,3.1408]
[1754072453526,5.027,3551.8,3551.0,2.81610233]
[1754072453730,0.1,3551.3,3551.0,2.81606355]
[1754072453919,5.028,3551.9,3550.6,3.0]
[1754072453920,5.028,3551.9,3551.7,0.1408]
[1754072454117,5.025,3551.9,3551.8,3.1408]
[1754072454496,0.001,3551.9,3551.8,3.1408]
[1754072454693,0.001,3551.9,3551.8,0.1408]
[1754072454928,2.91576896,3551.5,3550.0,2.8169014]
[1754072455091,7.83879095,3551.4,3550.4,2.81651455]
[1754072455299,0.1,3551.3,3550.5,3.0]
[1754072455541,0.1,3551.0,3550.8,0.1408]
[1754072455723,5.47,3550.9,3550.8,0.1408]
[1754072455909,8.28618744,3550.9,3550.8,0.1408]
[1754072456142,5.47,3550.9,3550.8,0.1408]
[1754072456477,2.81669743,3550.3,3549.9,0.002]
[1754072456635,2.9169014,3550.0,3549.9,0.002]
[1754072457021,0.1,3549.5,3547.3,2.81897874]
[1754072457228,2.91753634,3549.2,3549.1,0.1408]
[1754072457423,0.1,3549.0,3548.6,2.81797575]
[1754072457626,0.5878,3549.7,3549.1,0.1408]
[1754072457950,5.115,3549.6,3548.9,0.1408]
[1754072458163,5.115,3549.6,3549.5,0.1408]
[1754072459043,0.1,3549.8,3549.5,0.1408]
[1754072459244,6.765,3550.0,3549.5,0.1408]
[1754072459423,0.1,3549.8,3549.7,0.1408]
[1754072459729,0.1,3549.4,3548.2,3.0]
[1754072459920,0.1,3549.4,3547.9,0.2068]
[1754072459921,5.01,3549.3,3549.2,3.0]
[1754072460123,6.765,3550.0,3548.8,3.0]
[1754072460322,0.1,3549.7,3549.5,3.0]
[1754072460560,0.1,3549.7,3549.4,3.0]
[1754072460758,0.1,3550.4,3549.4,0.60991247]
[1754072460960,0.1,3550.1,3549.8,3.0]
[1754072461262,5.01,3550.3,3549.2,3.0]
[1754072461464,5.01,3550.3,3548.5,5.01]
[1754072461465,0.447,3551.4,3550.0,3.0]
[1754072461627,0.1,3550.9,3550.2,5.158839]
[1754072461827,8.40683784,3551.9,3551.8,2.81547384]
[1754072461828,0.846814,3551.9,3551.8,2.81547384]
[1754072462026,0.1,3552.5,3551.9,3.0]
[1754072462378,0.1,3552.5,3552.0,0.02815315]
[1754072462678,0.1,3552.0,3551.7,3.0]
[1754072462893,2.81277948,3555.3,3552.0,60.0]
[1754072463027,0.447,3556.0,3553.0,63.0]
[1754072463377,0.447,3556.0,3552.9,8.41997182]
[1754072463378,5.051,3555.8,3553.6,30.0]
[1754072463711,5.051,3555.8,3554.9,2.81298947]
[1754072463712,5.064,3555.7,3554.9,2.81298947]
[1754072463838,5.064,3555.7,3555.0,2.84104618]
[1754072464023,2.81269644,3555.4,3553.7,3.01671754]
[1754072464229,2.81269644,3555.4,3552.9,3.36458263]
[1754072464230,5.061,3555.3,3554.9,2.81299837]
[1754072464531,0.447,3555.5,3554.7,2.8131674]
[1754072464727,0.447,3555.5,3554.2,3.0]
[1754072464978,5.058,3556.0,3555.9,2.81222756]
[1754072465170,5.058,3556.0,3555.8,2.81229914]
[1754072465326,0.447,3557.1,3555.9,2.81222756]
[1754072465327,3.25827947,3557.1,3555.9,2.81222756]
[1754072465663,5.38082795,3557.0,3555.6,3.0]
[1754072465864,2.81148904,3556.9,3555.8,2.81229588]
[1754072466068,2.81159396,3556.8,3555.4,2.81261613]
[1754072466267,5.38082795,3557.0,3555.4,2.8125522]
[1754072466268,0.447,3556.7,3555.4,2.8125522]
[1754072466459,0.447,3556.7,3554.2,0.2028]
[1754072466767,2.72979718,3556.6,3554.6,2.81318729]
[1754072466953,6.763,3556.5,3555.0,3.0]
[1754072467131,6.763,3556.5,3554.9,2.81294457]
[1754072467132,2.81235776,3555.8,3554.7,3.0]
[1754072467330,0.447,3556.4,3555.3,3.0]
[1754072467532,5.044,3556.3,3556.1,2.81204619]
[1754072467759,5.044,3556.3,3556.2,2.81199032]
[1754072467982,6.763,3556.5,3556.4,2.81183218]
[1754072468177,0.447,3557.5,3556.2,0.20726538]
[1754072468383,6.761,3558.0,3556.7,3.0]
[1754072468534,5.045,3557.9,3556.8,0.02811515]
[1754072468895,5.045,3558.5,3557.9,3.0]
[1754072469176,5.045,3558.5,3558.0,3.02810567]
[1754072469332,5.045,3558.5,3558.0,0.02810567]
[1754072469533,5.045,3558.5,3557.2,3.2028]
[1754072469729,5.045,3558.5,3556.8,6.761809]
[1754072469949,5.045,3558.5,3557.1,3.0]
[1754072470194,0.447,3558.4,3556.6,3.0]
[1754072470500,5.484,3558.4,3555.6,5.587]
[1754072470637,2.81056773,3558.0,3557.9,0.1408]
[1754072470831,0.74759775,3558.0,3557.4,0.1408]
[1754072471160,0.447,3558.0,3557.6,0.1408]
[1754072471426,5.037,3557.9,3557.5,2.81089576]
[1754072471617,5.037,3557.9,3557.3,3.0]
[1754072471821,5.037,3557.9,3557.8,0.1408]
[1754072472045,2.81041023,3558.2,3557.8,0.1408]
[1754072472362,8.29464672,3557.9,3557.8,0.1408]
[1754072472666,8.29464672,3557.9,3556.4,3.0]
[1754072472667,5.484,3557.9,3556.4,3.0]
[1754072472941,8.29467422,3557.9,3557.8,0.1408]
[1754072473150,2.81103044,3557.5,3556.1,0.84412]
[1754072473315,1.01377742,3557.8,3556.3,2.81186252]
[1754072473503,8.41997182,3557.3,3556.1,1.05664315]
[1754072473700,5.479,3557.2,3556.1,0.84412]
[1754072473905,8.41997182,3556.6,3554.2,3.01637267]
[1754072474106,5.487,3556.5,3555.7,3.0]
[1754072474405,5.487,3556.5,3554.5,2.8133352]
[1754072474632,5.484,3557.1,3555.5,2.8125336]
[1754072474831,5.484,3557.1,3556.4,5.81182095]
[1754072474832,5.037,3557.1,3556.4,5.81182095]
[1754072475141,0.447,3557.6,3556.5,0.02811753]
[1754072475340,0.447,3557.6,3556.0,5.81214848]
[1754072475341,5.037,3557.5,3556.7,3.0]
[1754072475517,5.037,3557.5,3555.8,0.2028]
[1754072475518,0.82949515,3557.4,3555.2,0.2028]
[1754072475720,2.81141191,3557.0,3556.1,2.81205865]
[1754072475918,2.81141191,3557.0,3556.2,5.81198739]
[1754072476117,2.81120687,3557.2,3555.6,5.81246484]
[1754072476323,5.5044,3557.3,3556.2,3.0]
[1754072476533,2.81148971,3556.9,3556.1,3.0]
[1754072476719,2.81177487,3556.5,3555.7,3.0]
[1754072477042,5.034,3556.4,3556.3,3.0]
[1754072477256,7.3174,3556.4,3555.0,2.81293459]
[1754072477407,2.81212854,3556.1,3555.3,2.81264291]
[1754072477746,2.81228719,3555.9,3555.0,2.81287805]
[1754072477910,5.03,3555.8,3554.7,3.0]
[1754072478231,5.03,3555.8,3555.5,2.81248521]
[1754072478542,5.029,3555.7,3555.6,5.81241748]
[1754072478706,5.029,3555.9,3554.9,3.0]
[1754072478903,7.84124015,3555.9,3555.0,2.812861]
[1754072479108,5.85976402,3555.9,3555.1,2.8127981]
[1754072479308,0.4664,3555.8,3553.7,7.600646]
[1754072479503,0.4664,3555.8,3554.5,2.81328996]
[1754072479804,2.81288009,3555.1,3554.3,2.81341726]
[1754072480017,2.81238574,3555.7,3554.3,3.0]
[1754072480018,7.83696572,3555.0,3554.3,3.0]
[1754072480215,7.83696572,3555.0,3553.5,2.81411033]
[1754072480216,5.024,3555.0,3553.5,2.81412691]
[1754072480444,2.81200173,3556.2,3555.1,2.81278392]
[1754072480744,0.4664,3556.5,3555.3,3.0]
[1754072480745,5.022,3555.9,3555.3,3.0]
[1754072480943,0.4664,3556.5,3554.9,9.579004]
[1754072481270,0.4664,3556.5,3556.0,2.81214848]
[1754072481409,11.776,3556.1,3555.0,4.2579004]
[1754072481610,11.776,3556.1,3554.9,0.2028]
[1754072481976,0.4664,3556.5,3555.8,3.0]
[1754072482243,0.001,3555.9,3555.8,5.81223171]
[1754072482608,0.001,3555.9,3555.5,2.81253008]
[1754072482814,5.4794,3555.8,3555.1,0.20662797]
[1754072483014,5.4794,3555.8,3555.4,3.0]
[1754072483315,5.013,3555.8,3555.7,0.1408]
[1754072483847,7.2964,3555.8,3555.7,0.1408]
[1754072484234,10.10870665,3555.8,3555.7,0.1408]
[1754072484549,7.2964,3555.8,3555.7,0.1408]
[1754072484751,0.1408,3556.4,3555.7,0.1408]
[1754072484752,2.974,3561.1,3556.6,0.55]
[1754072485050,0.4664,3559.8,3557.3,3.55]
[1754072485247,0.4664,3559.8,3557.0,3.0]
[1754072485248,4.578,3560.0,3558.4,3.0]
[1754072485451,4.578,3560.0,3558.5,0.02810172]
[1754072485618,0.4664,3559.9,3558.5,0.02810172]
[1754072485819,0.4664,3559.9,3558.9,3.0]
[1754072486009,3.27549382,3559.9,3558.2,3.0]
[1754072486400,6.04290638,3559.8,3557.6,3.550258]
[1754072486682,3.27562549,3559.7,3558.3,3.0]
[1754072486981,2.80978447,3559.0,3557.6,0.21313741]
[1754072487156,5.201,3558.9,3558.2,3.0]
[1754072487356,5.6674,3558.9,3558.2,2.81039484]
[1754072487687,5.201,3558.9,3557.8,5.81072572]
[1754072487846,5.201,3558.9,3558.4,3.0]
[1754072488185,5.201,3558.9,3558.2,3.0]
[1754072488344,5.6674,3558.9,3557.8,0.86216858]
[1754072488545,2.81008909,3558.7,3557.8,5.81065733]
[1754072488769,0.4664,3558.9,3557.6,0.20713949]
[1754072488970,0.4664,3558.9,3557.3,9.071137]
[1754072488971,5.188,3558.8,3557.3,9.071137]
[1754072489246,5.188,3558.8,3557.3,3.20739293]
[1754072489247,0.4664,3558.7,3557.3,3.20739293]
[1754072489582,1.817,3558.6,3557.2,2.8111632]
[1754072489753,2.81010466,3558.6,3557.8,2.81068048]
[1754072489954,5.188,3558.6,3557.8,2.81069277]
[1754072490155,5.188,3558.6,3556.7,0.2028]
[1754072490156,2.81048636,3558.2,3557.3,2.81105679]
[1754072490396,0.4664,3558.5,3557.1,0.21309517]
[1754072490546,5.211,3558.4,3557.9,2.81064194]
[1754072490752,5.6774,3558.4,3557.7,2.81074374]
[1754072491083,0.4664,3558.3,3557.1,0.21136002]
[1754072491287,0.4664,3558.3,3556.1,5.209]
[1754072491288,0.4664,3558.3,3556.0,2.81213577]
[1754072491489,0.74944,3558.2,3556.1,0.28121358]
[1754072491798,0.4664,3558.1,3556.1,0.28121358]
[1754072491953,5.205,3558.0,3556.0,0.21298473]
[1754072492148,9.16941182,3558.2,3555.8,3.0]
[1754072492345,2.81111408,3557.4,3555.8,3.0]
[1754072492545,2.81125756,3557.2,3556.3,2.81184457]
[1754072492847,5.201,3557.1,3556.5,3.0]
[1754072493066,8.01228558,3557.1,3556.4,3.0]
[1754072493267,5.201,3557.1,3555.8,2.81230665]
[1754072493478,5.197,3557.0,3555.9,6.65171333]
[1754072493675,0.4664,3557.3,3556.3,3.0]
[1754072493887,5.192,3556.9,3556.8,2.81151596]
[1754072494317,5.192,3556.9,3556.5,3.0]
[1754072494474,5.192,3556.9,3556.8,2.81151596]
[1754072494669,7.2194,3558.0,3556.8,3.2811516]
[1754072494895,5.186,3557.9,3556.9,3.0]
[1754072495057,0.4664,3558.5,3557.9,0.1408]
[1754072495058,5.193,3558.0,3557.9,0.1408]
[1754072495258,5.193,3558.0,3557.8,0.1408]
[1754072495508,2.2834,3557.9,3556.7,3.0]
[1754072495676,2.81109932,3557.4,3556.6,3.0]
[1754072496022,2.81125445,3557.2,3556.4,2.81180196]
[1754072496303,2.81141968,3557.0,3555.6,3.0]
[1754072496501,2.81141968,3557.0,3556.2,2.81193627]
[1754072496502,5.6514,3556.9,3556.2,2.81193627]
[1754072496719,6.753,3557.7,3555.8,3.0]
[1754072496996,2.81129226,3557.1,3556.8,0.1408]
[1754072497193,5.184,3557.0,3555.6,3.0]
[1754072497399,0.4664,3557.4,3556.9,0.1408]
[1754072497700,5.182,3557.3,3557.1,5.81127885]
[1754072497887,0.6072,3557.7,3557.3,2.81112079]
[1754072497888,0.1408,3557.7,3557.3,2.81112079]
[1754072498084,5.179,3557.5,3557.4,3.0]
[1754072498400,0.4664,3558.2,3557.4,3.0]
[1754072498574,5.176,3558.0,3557.5,0.02810962]
[1754072498770,5.176,3558.0,3557.9,5.81064672]
[1754072498976,5.176,3558.0,3557.9,3.1408]
[1754072499272,10.26996773,3558.0,3557.9,0.1408]
[1754072499469,2.81087796,3557.7,3556.9,3.02353935]
[1754072499673,7.98388374,3557.6,3557.5,0.1408]
[1754072499879,8.45028374,3557.6,3555.9,5.81215465]
[1754072500077,2.81096275,3557.5,3557.3,0.1408]
[1754072500299,2.81133138,3557.1,3555.5,3.644027]
[1754072500485,5.171,3557.0,3556.8,3.0]
[1754072500663,5.171,3557.0,3556.8,2.81144492]
[1754072500862,5.171,3557.0,3556.9,0.1408]
[1754072501082,5.171,3557.0,3556.9,3.1408]
[1754072501989,5.6374,3557.0,3556.9,3.1408]
[1754072502201,5.171,3557.0,3556.9,3.1408]
[1754072502678,5.6374,3557.0,3556.9,0.1408]
[1754072503314,7.4544,3557.0,3554.9,2.81295754]
[1754072503518,7.2194,3556.9,3554.2,0.2028]
[1754072503706,2.81251792,3555.6,3554.2,0.2093086]
[1754072504021,5.153,3555.5,3555.1,5.81279972]
[1754072504322,2.8127782,3555.3,3553.8,2.81388935]
[1754072504489,2.2834,3555.4,3554.6,2.81322464]
[1754072504698,2.2834,3555.4,3554.0,2.81367005]
[1754072504917,5.153,3555.5,3555.1,3.0]
[1754072505136,0.4664,3555.9,3554.4,2.81336286]
[1754072505277,0.4664,3555.9,3555.5,2.81251337]
[1754072505473,1.817,3556.3,3555.6,2.81245545]
[1754072505474,5.145,3555.8,3555.6,2.81245545]
[1754072505679,5.145,3555.8,3555.7,2.81238574]
[1754072505914,5.143,3555.9,3555.2,3.0]
[1754072506083,5.143,3555.9,3555.7,2.8123637]
[1754072506499,5.143,3555.9,3555.3,0.58128035]
[1754072506697,5.143,3555.9,3555.6,2.81245238]
[1754072506927,5.136,3556.0,3555.6,2.81238657]
[1754072507127,1.817,3556.3,3555.7,2.81238394]
[1754072507426,5.563,3556.2,3554.5,3.0]
[1754072507625,2.81247321,3555.6,3554.6,2.81325606]
[1754072507826,13.04892567,3556.3,3554.7,2.8131453]
[1754072507827,5.561,3555.5,3554.7,2.8131453]
[1754072508016,5.131,3555.4,3555.1,3.0]
[1754072508321,0.429,3555.4,3554.7,2.8131453]
[1754072508522,5.128,3555.3,3554.0,2.813731]
[1754072508839,0.429,3555.9,3555.4,2.81256312]
[1754072509070,0.429,3555.9,3554.7,3.0]
[1754072509071,5.124,3555.8,3554.8,0.02813097]
[1754072509380,5.124,3555.8,3553.1,0.393]
[1754072509381,8.41997182,3555.5,3552.0,0.2028]
[1754072509694,2.81275379,3555.3,3553.6,2.81402333]
[1754072509827,8.41997182,3554.8,3553.1,2.81440041]
[1754072510030,0.429,3554.7,3553.2,0.02814364]
[1754072510272,5.135,3554.6,3553.4,3.0]
[1754072510570,0.429,3554.5,3553.2,2.81433579]
[1754072510793,1.9851,3554.4,3552.3,0.2028]
[1754072510934,0.429,3554.3,3552.2,0.002]
[1754072511127,0.429,3554.3,3552.4,2.81499831]
[1754072511364,0.429,3554.3,3552.2,0.002]
[1754072511365,0.429,3554.3,3552.3,2.81507755]
[1754072511553,0.429,3554.3,3553.5,3.0]
[1754072511729,0.429,3554.3,3552.2,0.002]
[1754072511925,2.81357267,3554.2,3552.4,15.337676]
[1754072512130,5.13,3554.1,3553.1,3.0]
[1754072512345,0.429,3554.3,3553.4,3.0]
[1754072512644,2.81380373,3554.0,3553.0,2.81444463]
[1754072512829,2.81380373,3554.0,3552.5,3.0]
[1754072512830,0.429,3553.9,3552.5,3.0]
[1754072513030,0.429,3553.9,3552.0,3.21113197]
[1754072513241,0.429,3553.9,3553.4,3.0]
[1754072513463,1.9851,3553.9,3553.8,0.1408]
[1754072513768,5.122,3553.9,3553.8,0.1408]
[1754072514129,5.551,3553.9,3553.8,0.1408]
[1754072514665,2.4141,3554.4,3554.1,2.81361399]
[1754072514851,5.121,3554.3,3554.0,3.0]
[1754072515033,5.121,3554.3,3553.7,3.0]
[1754072515235,0.429,3554.2,3552.5,3.0]
[1754072515428,0.429,3554.2,3554.0,0.1408]
[1754072515630,1.9851,3554.1,3554.0,0.1408]
[1754072515870,2.4141,3554.1,3554.0,0.1408]
[1754072516040,2.4141,3554.1,3553.2,3.0]
[1754072516383,5.22775183,3554.1,3554.0,0.1408]
[1754072516601,9.91275183,3554.1,3554.0,0.1408]
[1754072516960,2.81397211,3553.7,3552.2,3.34124761]
[1754072517166,7.5281,3554.1,3553.9,0.1408]
[1754072517387,7.5281,3554.1,3552.2,0.5261132]
[1754072517388,2.81381018,3553.9,3552.3,5.332235]
[1754072517602,2.81402257,3553.7,3553.5,0.1408]
[1754072517781,3.24291654,3553.8,3553.5,0.1408]
[1754072517963,2.4141,3553.7,3553.5,0.1408]
[1754072518158,0.429,3553.6,3553.5,0.1408]
[1754072518416,5.543,3554.1,3553.5,0.1408]
[1754072518581,5.106,3554.0,3553.0,3.0]
[1754072518767,5.106,3554.0,3553.9,0.1408]
[1754072519112,5.106,3554.0,3553.9,2.95461018]
[1754072519273,5.1,3554.0,3553.9,0.1408]
[1754072519477,5.1,3554.1,3553.9,0.1408]
[1754072519790,0.429,3554.0,3553.9,0.1408]
[1754072520165,5.227831,3554.0,3553.9,0.1408]
[1754072520367,2.81390196,3553.8,3553.7,0.1408]
[1754072520566,10.83407182,3553.9,3552.1,0.002]
[1754072520771,2.03648718,3553.8,3553.1,0.1408]
[1754072520994,0.1408,3553.6,3553.1,0.1408]
[1754072521208,7.6479,3553.5,3552.1,0.002]
[1754072521512,0.1408,3553.2,3553.1,2.81444372]
[1754072521809,2.81261566,3555.5,3553.5,3.0]
[1754072521991,5.108,3555.6,3554.7,2.81311475]
[1754072522194,0.5698,3555.8,3555.3,0.1408]
[1754072522393,2.4141,3555.7,3555.3,0.1408]
[1754072522608,2.4141,3555.7,3553.2,2.81436324]
[1754072522609,2.4141,3555.6,3553.7,2.81396853]
[1754072522896,6.87884531,3557.5,3555.6,0.1408]
[1754072522897,5.149,3556.2,3555.6,0.1408]
[1754072523113,0.429,3556.4,3555.9,2.81215059]
[1754072523266,0.429,3556.4,3555.3,3.0]
[1754072523267,5.151,3556.4,3555.8,3.0]
[1754072523465,0.429,3556.3,3554.7,2.81310856]
[1754072523692,0.429,3556.3,3556.2,0.1408]
[1754072523693,3.24091125,3556.3,3556.2,0.1408]
[1754072523862,2.81214848,3556.0,3555.9,0.1408]
[1754072524077,5.147,3556.0,3555.6,0.1408]
[1754072524408,2.4141,3555.9,3555.6,0.1408]
[1754072524812,2.81238574,3555.7,3555.6,0.1408]
[1754072525016,5.22641277,3555.8,3555.0,2.8128844]
[1754072525309,0.429,3555.7,3555.2,0.1408]
[1754072525531,7.28334289,3555.4,3555.1,0.1408]
[1754072525809,2.81285534,3555.2,3554.8,0.1408]
[1754072526009,7.6919,3555.3,3554.8,0.1408]
[1754072526166,2.81299545,3555.0,3554.8,0.1408]
[1754072526372,2.4141,3555.1,3554.1,0.002]
[1754072526373,2.81301865,3554.9,3554.1,0.002]
[1754072526687,2.4141,3555.1,3554.5,0.1408]
[1754072526688,15.23046535,3554.8,3554.5,0.1408]
[1754072526899,12.41734289,3554.8,3554.5,0.1408]
[1754072527207,0.429,3554.7,3554.5,0.1408]
[1754072527376,5.131,3554.6,3554.1,0.002]
[1754072527565,7.94035448,3554.5,3554.1,0.002]
[1754072527764,7.5411,3554.5,3554.1,0.002]
[1754072527978,0.429,3554.4,3554.1,0.002]
[1754072528178,2.4141,3554.4,3554.1,0.002]
[1754072528377,1.9851,3554.4,3554.1,0.1428]
[1754072528598,0.429,3554.3,3554.1,0.1428]
[1754072529302,5.546,3554.3,3554.2,0.1408]
[1754072529505,10.34460777,3554.3,3554.1,0.002]
[1754072529668,0.429,3554.2,3554.1,0.002]
[1754072530014,5.117,3554.2,3554.1,5.81565183]
[1754072530167,5.117,3554.2,3554.1,5.95645183]
[1754072530588,2.1259,3555.2,3554.2,3.0]
[1754072530804,5.112,3555.1,3554.6,3.0]
[1754072531114,5.112,3555.1,3554.8,5.81309477]
[1754072531266,5.112,3555.1,3555.0,0.1408]
[1754072531991,5.541,3555.1,3555.0,0.1408]
[1754072532311,2.4141,3555.1,3554.2,2.81351739]
[1754072532514,5.113,3555.0,3554.9,0.1408]
[1754072532689,5.542,3555.0,3554.9,0.1408]
[1754072533690,17.62338241,3555.0,3554.9,0.1408]
[1754072533884,19.66700535,3555.0,3554.9,0.1408]
[1754072534082,19.80780535,3555.0,3554.3,3.1408]
[1754072534308,10.34004354,3555.0,3554.5,0.1408]
[1754072534483,2.4141,3554.9,3554.5,0.1408]
[1754072534684,2.4141,3554.9,3554.1,0.002]
[1754072534896,0.1408,3554.7,3554.2,0.1408]
[1754072535099,2.81333913,3554.5,3554.2,0.1408]
[1754072535314,0.429,3554.5,3554.2,0.1408]
[1754072535517,0.4412,3554.4,3554.2,0.1408]
[1754072536719,0.4412,3555.1,3554.6,2.81320011]
[1754072536918,0.4412,3555.1,3554.1,2.81560683]
[1754072536919,5.095,3555.0,3554.3,0.1408]